[Event "Titled Tuesday Blitz June 29 2021"]
[White "Beca95"]
[Black "Tayson_7"]
[WhiteElo "2845"]
[BlackElo "2628"]
[Result "0-1"]
[Round "05"]
[TimeControl "180+1"]
[Date "2021.06.29"]
[WhiteClock "0:00:13"]
[BlackClock "0:00:03"]

1. d4 {[%clk 0:03:00]}  c5 {[%clk 0:03:00]} 2. d5 {[%clk 0:02:59]}  Nf6 {[%clk 0:02:57]} 3. Nc3 {[%clk 0:02:58]}  g6 {[%clk 0:02:56]} 4. e4 {[%clk 0:02:58]}  d6 {[%clk 0:02:57]} 5. Nf3 {[%clk 0:02:58]}  Bg7 {[%clk 0:02:57]} 6. Bb5+ {[%clk 0:02:57]}  Nbd7 {[%clk 0:02:58]} 7. a4 {[%clk 0:02:57]}  O-O {[%clk 0:02:59]} 8. O-O {[%clk 0:02:56]}  a6 {[%clk 0:02:59]} 9. Bc4 {[%clk 0:02:55]}  Rb8 {[%clk 0:02:59]} 10. h3 {[%clk 0:02:54]}  b5 {[%clk 0:02:57]} 11. axb5 {[%clk 0:02:50]}  axb5 {[%clk 0:02:58]} 12. Nxb5 {[%clk 0:02:50]}  Nxe4 {[%clk 0:02:57]} 13. Re1 {[%clk 0:02:50]}  Nef6 {[%clk 0:02:50]} 14. Bf1 {[%clk 0:02:46]}  Re8 {[%clk 0:02:13]} 15. c4 {[%clk 0:02:43]}  Rxb5 {[%clk 0:02:07]} 16. cxb5 {[%clk 0:02:42]}  Bb7 {[%clk 0:02:05]} 17. Nd2 {[%clk 0:02:40]}  Bxd5 {[%clk 0:02:02]} 18. Nc4 {[%clk 0:02:39]}  Qb8 {[%clk 0:01:50]} 19. Ra3 {[%clk 0:02:19]}  Bxc4 {[%clk 0:01:31]} 20. Bxc4 {[%clk 0:02:18]}  Nb6 {[%clk 0:01:32]} 21. Bf1 {[%clk 0:02:16]}  d5 {[%clk 0:01:31]} 22. Ra6 {[%clk 0:02:16]}  e5 {[%clk 0:01:24]} 23. g3 {[%clk 0:02:12]}  c4 {[%clk 0:01:19]} 24. Bd2 {[%clk 0:01:51]}  Nfd7 {[%clk 0:01:05]} 25. Ba5 {[%clk 0:01:47]}  e4 {[%clk 0:01:03]} 26. Bc3 {[%clk 0:01:39]}  Ne5 {[%clk 0:00:41]} 27. Bxe5 {[%clk 0:01:28]}  Bxe5 {[%clk 0:00:42]} 28. Qd2 {[%clk 0:01:22]}  Rd8 {[%clk 0:00:35]} 29. Kg2 {[%clk 0:01:08]}  Qc7 {[%clk 0:00:32]} 30. Qe3 {[%clk 0:01:06]}  Rd6 {[%clk 0:00:26]} 31. Qa3 {[%clk 0:01:01]}  Rf6 {[%clk 0:00:24]} 32. Rd1 {[%clk 0:00:48]}  Kg7 {[%clk 0:00:16]} 33. Qe3 {[%clk 0:00:45]}  Bxb2 {[%clk 0:00:13]} 34. Rd2 {[%clk 0:00:21]}  Be5 {[%clk 0:00:13]} 35. Be2 {[%clk 0:00:20]}  h5 {[%clk 0:00:11]} 36. h4 {[%clk 0:00:19]}  Qb7 {[%clk 0:00:10]} 37. Kg1 {[%clk 0:00:18]}  c3 {[%clk 0:00:10]} 38. Rc2 {[%clk 0:00:19]}  d4 {[%clk 0:00:09]} 39. Qg5 {[%clk 0:00:17]}  Rf5 {[%clk 0:00:07]} 40. Qd8 {[%clk 0:00:17]}  d3 {[%clk 0:00:05]} 41. Rxb6 {[%clk 0:00:17]}  dxc2 {[%clk 0:00:04]} 42. Rxb7 {[%clk 0:00:17]}  c1=Q+ {[%clk 0:00:04]} 43. Kg2 {[%clk 0:00:16]}  Qe1 {[%clk 0:00:04]} 44. f4 {[%clk 0:00:13]}  exf3+ {[%clk 0:00:02]} 45. Bxf3 {[%clk 0:00:13]}  Qxg3+ {[%clk 0:00:02]} 46. Kf1 {[%clk 0:00:13]}  Qxf3+ {[%clk 0:00:03]} 47. Ke1 {[%clk 0:00:13]}  Bg3# {[%clk 0:00:03]} 0-1


[Site "https://www.chess.com"]

[Event "Titled Tuesday Blitz June 29 2021"]
[White "Byniolus"]
[Black "Iball95"]
[WhiteElo "2763"]
[BlackElo "2606"]
[Result "1/2-1/2"]
[Round "05"]
[TimeControl "180+1"]
[Date "2021.06.29"]
[WhiteClock "0:00:25"]
[BlackClock "0:00:07"]

1. d4 {[%clk 0:03:00]}  d5 {[%clk 0:02:56]} 2. Bf4 {[%clk 0:03:00]}  c5 {[%clk 0:02:54]} 3. e3 {[%clk 0:03:00]}  Nc6 {[%clk 0:02:53]} 4. c3 {[%clk 0:03:00]}  Bf5 {[%clk 0:02:53]} 5. Qb3 {[%clk 0:02:59]}  Qd7 {[%clk 0:02:51]} 6. Nf3 {[%clk 0:02:59]}  f6 {[%clk 0:02:51]} 7. h3 {[%clk 0:02:57]}  e6 {[%clk 0:02:50]} 8. Nbd2 {[%clk 0:02:55]}  g5 {[%clk 0:02:48]} 9. Bg3 {[%clk 0:02:53]}  h5 {[%clk 0:02:47]} 10. Be2 {[%clk 0:02:53]}  Nh6 {[%clk 0:02:33]} 11. O-O {[%clk 0:02:38]}  Rc8 {[%clk 0:01:42]} 12. Rfe1 {[%clk 0:02:25]}  Kf7 {[%clk 0:01:37]} 13. Bf1 {[%clk 0:02:22]}  a6 {[%clk 0:01:31]} 14. e4 {[%clk 0:02:08]}  dxe4 {[%clk 0:01:30]} 15. Nxe4 {[%clk 0:02:09]}  cxd4 {[%clk 0:01:30]} 16. Nxd4 {[%clk 0:02:06]}  Nxd4 {[%clk 0:01:30]} 17. cxd4 {[%clk 0:02:07]}  Qd5 {[%clk 0:01:16]} 18. Qxd5 {[%clk 0:01:08]}  exd5 {[%clk 0:01:17]} 19. Nd6+ {[%clk 0:01:09]}  Bxd6 {[%clk 0:01:16]} 20. Bxd6 {[%clk 0:01:10]}  Rhe8 {[%clk 0:01:05]} 21. Rac1 {[%clk 0:01:04]}  Rxe1 {[%clk 0:00:47]} 22. Rxe1 {[%clk 0:01:05]}  Re8 {[%clk 0:00:34]} 23. Rc1 {[%clk 0:01:01]}  Rc8 {[%clk 0:00:33]} 24. Rc5 {[%clk 0:00:50]}  Rxc5 {[%clk 0:00:28]} 25. dxc5 {[%clk 0:00:51]}  Bb1 {[%clk 0:00:27]} 26. a3 {[%clk 0:00:49]}  Nf5 {[%clk 0:00:27]} 27. Bb8 {[%clk 0:00:45]}  d4 {[%clk 0:00:18]} 28. Bc4+ {[%clk 0:00:35]}  Ke7 {[%clk 0:00:16]} 29. Kf1 {[%clk 0:00:36]}  Be4 {[%clk 0:00:11]} 30. f3 {[%clk 0:00:33]}  Ne3+ {[%clk 0:00:10]} 31. Kf2 {[%clk 0:00:32]}  Nxc4 {[%clk 0:00:11]} 32. fxe4 {[%clk 0:00:32]}  Nxb2 {[%clk 0:00:10]} 33. Ke2 {[%clk 0:00:31]}  Ke6 {[%clk 0:00:10]} 34. g4 {[%clk 0:00:19]}  hxg4 {[%clk 0:00:09]} 35. hxg4 {[%clk 0:00:19]}  Nc4 {[%clk 0:00:08]} 36. Kd3 {[%clk 0:00:18]}  Ne5+ {[%clk 0:00:05]} 37. Kxd4 {[%clk 0:00:18]}  Nxg4 {[%clk 0:00:05]} 38. c6 {[%clk 0:00:15]}  bxc6 {[%clk 0:00:06]} 39. Kc5 {[%clk 0:00:16]}  Ne5 {[%clk 0:00:06]} 40. Ba7 {[%clk 0:00:15]}  Kd7 {[%clk 0:00:04]} 41. Kb6 {[%clk 0:00:16]}  g4 {[%clk 0:00:04]} 42. Kxa6 {[%clk 0:00:17]}  g3 {[%clk 0:00:04]} 43. a4 {[%clk 0:00:17]}  g2 {[%clk 0:00:05]} 44. a5 {[%clk 0:00:18]}  Kc7 {[%clk 0:00:05]} 45. Bf2 {[%clk 0:00:13]}  Nf3 {[%clk 0:00:04]} 46. Ka7 {[%clk 0:00:13]}  g1=Q {[%clk 0:00:04]} 47. Bxg1 {[%clk 0:00:14]}  Nxg1 {[%clk 0:00:04]} 48. a6 {[%clk 0:00:14]}  Ne2 {[%clk 0:00:04]} 49. Ka8 {[%clk 0:00:14]}  Nd4 {[%clk 0:00:04]} 50. e5 {[%clk 0:00:12]}  Nb5 {[%clk 0:00:03]} 51. exf6 {[%clk 0:00:13]}  Kd7 {[%clk 0:00:03]} 52. f7 {[%clk 0:00:11]}  Ke7 {[%clk 0:00:03]} 53. Kb7 {[%clk 0:00:12]}  c5 {[%clk 0:00:03]} 54. Kb6 {[%clk 0:00:11]}  Nd6 {[%clk 0:00:04]} 55. Kc7 {[%clk 0:00:11]}  Nb5+ {[%clk 0:00:03]} 56. Kc6 {[%clk 0:00:11]}  Na7+ {[%clk 0:00:02]} 57. Kb7 {[%clk 0:00:11]}  Nb5 {[%clk 0:00:03]} 58. Kb6 {[%clk 0:00:11]}  Nd6 {[%clk 0:00:03]} 59. Kxc5 {[%clk 0:00:11]}  Nc8 {[%clk 0:00:03]} 60. Kc6 {[%clk 0:00:12]}  Kxf7 {[%clk 0:00:03]} 61. Kc7 {[%clk 0:00:13]}  Na7 {[%clk 0:00:03]} 62. Kb6 {[%clk 0:00:14]}  Nc8+ {[%clk 0:00:03]} 63. Kb7 {[%clk 0:00:14]}  Nd6+ {[%clk 0:00:04]} 64. Kb8 {[%clk 0:00:15]}  Nb5 {[%clk 0:00:04]} 65. Kb7 {[%clk 0:00:15]}  Ke7 {[%clk 0:00:04]} 66. Kc6 {[%clk 0:00:16]}  Na7+ {[%clk 0:00:04]} 67. Kb7 {[%clk 0:00:17]}  Nb5 {[%clk 0:00:04]} 68. Kb6 {[%clk 0:00:17]}  Nd6 {[%clk 0:00:05]} 69. Kc6 {[%clk 0:00:16]}  Nc8 {[%clk 0:00:05]} 70. Kc7 {[%clk 0:00:17]}  Na7 {[%clk 0:00:05]} 71. Kb6 {[%clk 0:00:17]}  Nc8+ {[%clk 0:00:05]} 72. Kb7 {[%clk 0:00:18]}  Nd6+ {[%clk 0:00:06]} 73. Kc7 {[%clk 0:00:18]}  Nb5+ {[%clk 0:00:06]} 74. Kc6 {[%clk 0:00:19]}  Na7+ {[%clk 0:00:06]} 75. Kb6 {[%clk 0:00:20]}  Nc8+ {[%clk 0:00:06]} 76. Kb7 {[%clk 0:00:21]}  Nd6+ {[%clk 0:00:07]} 77. Ka7 {[%clk 0:00:21]}  Kd7 {[%clk 0:00:07]} 78. Kb8 {[%clk 0:00:21]}  Nb5 {[%clk 0:00:07]} 79. Kb7 {[%clk 0:00:22]}  Nd6+ {[%clk 0:00:06]} 80. Kb8 {[%clk 0:00:22]}  Nb5 {[%clk 0:00:06]} 81. Kb7 {[%clk 0:00:23]}  Nd6+ {[%clk 0:00:07]} 82. Kb6 {[%clk 0:00:24]}  Nc8+ {[%clk 0:00:07]} 83. Kb7 {[%clk 0:00:25]}  Nd6+ {[%clk 0:00:07]} 1/2-1/2


[Site "https://www.chess.com"]

[Event "Titled Tuesday Blitz June 29 2021"]
[White "ChessLover0108"]
[Black "pavel_skatchkov"]
[WhiteElo "2841"]
[BlackElo "2624"]
[Result "1-0"]
[Round "05"]
[TimeControl "180+1"]
[Date "2021.06.29"]
[WhiteClock "0:00:03"]
[BlackClock "0:00:03"]

1. d4 {[%clk 0:03:00]}  Nf6 {[%clk 0:02:56]} 2. c4 {[%clk 0:02:59]}  e6 {[%clk 0:02:55]} 3. Nf3 {[%clk 0:02:59]}  d5 {[%clk 0:02:55]} 4. Nc3 {[%clk 0:02:59]}  c6 {[%clk 0:02:53]} 5. Bg5 {[%clk 0:02:58]}  dxc4 {[%clk 0:02:52]} 6. e4 {[%clk 0:02:56]}  b5 {[%clk 0:02:49]} 7. e5 {[%clk 0:02:55]}  h6 {[%clk 0:02:48]} 8. Bh4 {[%clk 0:02:56]}  g5 {[%clk 0:02:48]} 9. Nxg5 {[%clk 0:02:56]}  hxg5 {[%clk 0:02:47]} 10. Bxg5 {[%clk 0:02:57]}  Nbd7 {[%clk 0:02:47]} 11. g3 {[%clk 0:02:57]}  Rg8 {[%clk 0:02:46]} 12. Bh4 {[%clk 0:02:27]}  Bb7 {[%clk 0:02:41]} 13. Bg2 {[%clk 0:02:26]}  Qb6 {[%clk 0:02:41]} 14. exf6 {[%clk 0:02:21]}  O-O-O {[%clk 0:02:42]} 15. a4 {[%clk 0:02:19]}  b4 {[%clk 0:02:38]} 16. a5 {[%clk 0:02:17]}  Qa6 {[%clk 0:02:34]} 17. Ne4 {[%clk 0:02:14]}  c5 {[%clk 0:02:30]} 18. Qh5 {[%clk 0:02:00]}  cxd4 {[%clk 0:02:25]} 19. Qxf7 {[%clk 0:01:59]}  c3 {[%clk 0:01:56]} 20. bxc3 {[%clk 0:01:39]}  Ne5 {[%clk 0:01:50]} 21. Qxg8 {[%clk 0:01:31]}  Nd3+ {[%clk 0:01:41]} 22. Kf1 {[%clk 0:00:47]}  Nf4+ {[%clk 0:01:39]} 23. Kg1 {[%clk 0:00:46]}  Ne2+ {[%clk 0:01:38]} 24. Kf1 {[%clk 0:00:46]}  Nxg3+ {[%clk 0:01:36]} 25. Kg1 {[%clk 0:00:46]}  Ne2+ {[%clk 0:01:35]} 26. Kf1 {[%clk 0:00:46]}  Nxc3+ {[%clk 0:01:32]} 27. Kg1 {[%clk 0:00:44]}  Ne2+ {[%clk 0:01:32]} 28. Kf1 {[%clk 0:00:44]}  Ng3+ {[%clk 0:00:24]} 29. Kg1 {[%clk 0:00:44]}  Ne2+ {[%clk 0:00:24]} 30. Kf1 {[%clk 0:00:03]}  Ng3+ {[%clk 0:00:25]} 31. Kg1 {[%clk 0:00:02]}  Nxe4 {[%clk 0:00:22]} 32. f7 {[%clk 0:00:02]}  Nc3 {[%clk 0:00:18]} 33. Bxb7+ {[%clk 0:00:01]}  Qxb7 {[%clk 0:00:16]} 34. Bxd8 {[%clk 0:00:01]}  Ne2+ {[%clk 0:00:16]} 35. Kf1 {[%clk 0:00:02]}  Qxh1+ {[%clk 0:00:16]} 36. Kxe2 {[%clk 0:00:03]}  d3+ {[%clk 0:00:16]} 37. Kxd3 {[%clk 0:00:03]}  Qd5+ {[%clk 0:00:16]} 38. Ke2 {[%clk 0:00:03]}  Qe5+ {[%clk 0:00:15]} 39. Kf3 {[%clk 0:00:03]}  Qf5+ {[%clk 0:00:13]} 40. Kg2 {[%clk 0:00:03]}  Qe4+ {[%clk 0:00:12]} 41. Kg1 {[%clk 0:00:04]}  Qd4 {[%clk 0:00:05]} 42. Bf6 {[%clk 0:00:04]}  Qxf6 {[%clk 0:00:03]} 43. Qxf8+ {[%clk 0:00:04]}  Kb7 {[%clk 0:00:04]} 44. Qg8 {[%clk 0:00:02]}  Qxa1+ {[%clk 0:00:03]} 45. Kg2 {[%clk 0:00:03]} 1-0


[Site "https://www.chess.com"]

[Event "Titled Tuesday Blitz June 29 2021"]
[White "ChristopherYoo"]
[Black "tdf98pantani"]
[WhiteElo "2934"]
[BlackElo "2644"]
[Result "1/2-1/2"]
[Round "05"]
[TimeControl "180+1"]
[Date "2021.06.29"]
[WhiteClock "0:00:03"]
[BlackClock "0:00:04"]

1. e4 {[%clk 0:03:00]}  c6 {[%clk 0:02:58]} 2. d4 {[%clk 0:02:55]}  d5 {[%clk 0:02:58]} 3. exd5 {[%clk 0:02:51]}  cxd5 {[%clk 0:02:58]} 4. c4 {[%clk 0:02:50]}  Nf6 {[%clk 0:02:57]} 5. Nc3 {[%clk 0:02:49]}  Nc6 {[%clk 0:02:57]} 6. Nf3 {[%clk 0:02:41]}  a6 {[%clk 0:02:57]} 7. Ne5 {[%clk 0:02:29]}  Be6 {[%clk 0:02:38]} 8. Nxc6 {[%clk 0:02:06]}  bxc6 {[%clk 0:02:37]} 9. Qa4 {[%clk 0:02:06]}  Qd7 {[%clk 0:02:32]} 10. cxd5 {[%clk 0:02:02]}  Nxd5 {[%clk 0:02:23]} 11. Ne4 {[%clk 0:02:01]}  Bf5 {[%clk 0:02:06]} 12. Nc5 {[%clk 0:01:50]}  Qd6 {[%clk 0:02:04]} 13. Bd3 {[%clk 0:01:49]}  Bxd3 {[%clk 0:02:00]} 14. Nxd3 {[%clk 0:01:50]}  e6 {[%clk 0:02:00]} 15. Bd2 {[%clk 0:01:45]}  Be7 {[%clk 0:01:49]} 16. Rc1 {[%clk 0:01:44]}  Rc8 {[%clk 0:01:34]} 17. Ne5 {[%clk 0:01:34]}  O-O {[%clk 0:01:33]} 18. Rxc6 {[%clk 0:01:28]}  Rxc6 {[%clk 0:01:31]} 19. Qxc6 {[%clk 0:01:18]}  Qb8 {[%clk 0:01:31]} 20. Qc2 {[%clk 0:01:06]}  Rc8 {[%clk 0:01:28]} 21. Qb3 {[%clk 0:01:06]}  Qxb3 {[%clk 0:01:22]} 22. axb3 {[%clk 0:01:04]}  Rb8 {[%clk 0:01:01]} 23. Ke2 {[%clk 0:00:58]}  Rxb3 {[%clk 0:01:01]} 24. Nd3 {[%clk 0:00:56]}  Bf6 {[%clk 0:00:53]} 25. Ra1 {[%clk 0:00:51]}  Bxd4 {[%clk 0:00:52]} 26. Rxa6 {[%clk 0:00:51]}  h6 {[%clk 0:00:51]} 27. Bc1 {[%clk 0:00:36]}  Nb4 {[%clk 0:00:34]} 28. Nxb4 {[%clk 0:00:25]}  Rxb4 {[%clk 0:00:35]} 29. Ra2 {[%clk 0:00:25]}  Rc4 {[%clk 0:00:29]} 30. Kd3 {[%clk 0:00:16]}  Rxc1 {[%clk 0:00:29]} 31. Kxd4 {[%clk 0:00:16]}  Rc2 {[%clk 0:00:29]} 32. Ke3 {[%clk 0:00:16]}  e5 {[%clk 0:00:27]} 33. Ra8+ {[%clk 0:00:15]}  Kh7 {[%clk 0:00:27]} 34. Rb8 {[%clk 0:00:14]}  f5 {[%clk 0:00:26]} 35. b4 {[%clk 0:00:15]}  Kg6 {[%clk 0:00:18]} 36. b5 {[%clk 0:00:15]}  Rb2 {[%clk 0:00:13]} 37. b6 {[%clk 0:00:14]}  Kg5 {[%clk 0:00:13]} 38. Rb7 {[%clk 0:00:12]}  g6 {[%clk 0:00:13]} 39. h3 {[%clk 0:00:11]}  h5 {[%clk 0:00:12]} 40. Rb8 {[%clk 0:00:10]}  h4 {[%clk 0:00:13]} 41. b7 {[%clk 0:00:08]}  Rb3+ {[%clk 0:00:09]} 42. Kd2 {[%clk 0:00:08]}  Kf4 {[%clk 0:00:09]} 43. Kc2 {[%clk 0:00:09]}  Rb6 {[%clk 0:00:09]} 44. Kc3 {[%clk 0:00:09]}  e4 {[%clk 0:00:08]} 45. Kd4 {[%clk 0:00:08]}  g5 {[%clk 0:00:07]} 46. Kd5 {[%clk 0:00:05]}  Rb2 {[%clk 0:00:07]} 47. Ke6 {[%clk 0:00:04]}  Rb6+ {[%clk 0:00:05]} 48. Kd7 {[%clk 0:00:04]}  Rb2 {[%clk 0:00:05]} 49. Kc7 {[%clk 0:00:04]}  Rxf2 {[%clk 0:00:05]} 50. Rf8 {[%clk 0:00:03]}  Rc2+ {[%clk 0:00:05]} 51. Kd6 {[%clk 0:00:03]}  Rb2 {[%clk 0:00:05]} 52. b8=Q {[%clk 0:00:04]}  Rxb8 {[%clk 0:00:05]} 53. Rxb8 {[%clk 0:00:05]}  e3 {[%clk 0:00:02]} 54. Re8 {[%clk 0:00:02]}  g4 {[%clk 0:00:02]} 55. hxg4 {[%clk 0:00:02]}  fxg4 {[%clk 0:00:03]} 56. Kd5 {[%clk 0:00:02]}  h3 {[%clk 0:00:03]} 57. Re4+ {[%clk 0:00:03]}  Kg3 {[%clk 0:00:03]} 58. gxh3 {[%clk 0:00:03]}  gxh3 {[%clk 0:00:01]} 59. Rxe3+ {[%clk 0:00:04]}  Kg2 {[%clk 0:00:02]} 60. Re2+ {[%clk 0:00:04]}  Kg1 {[%clk 0:00:02]} 61. Ke5 {[%clk 0:00:02]}  h2 {[%clk 0:00:03]} 62. Re1+ {[%clk 0:00:02]}  Kg2 {[%clk 0:00:03]} 63. Kf4 {[%clk 0:00:03]}  h1=Q {[%clk 0:00:03]} 64. Rxh1 {[%clk 0:00:03]}  Kxh1 {[%clk 0:00:04]} 1/2-1/2


[Site "https://www.chess.com"]

[Event "Titled Tuesday Blitz June 29 2021"]
[White "GMG"]
[Black "nrvisakh"]
[WhiteElo "2632"]
[BlackElo "2848"]
[Result "1/2-1/2"]
[Round "05"]
[TimeControl "180+1"]
[Date "2021.06.29"]
[WhiteClock "0:00:41"]
[BlackClock "0:00:56"]

1. d4 {[%clk 0:03:00]}  Nf6 {[%clk 0:02:49]} 2. c4 {[%clk 0:03:00]}  e6 {[%clk 0:02:47]} 3. Nc3 {[%clk 0:03:01]}  d5 {[%clk 0:02:46]} 4. cxd5 {[%clk 0:02:59]}  Nxd5 {[%clk 0:02:47]} 5. e4 {[%clk 0:02:59]}  Nxc3 {[%clk 0:02:47]} 6. bxc3 {[%clk 0:03:00]}  c5 {[%clk 0:02:47]} 7. Rb1 {[%clk 0:03:00]}  cxd4 {[%clk 0:02:45]} 8. cxd4 {[%clk 0:03:01]}  Be7 {[%clk 0:02:46]} 9. Nf3 {[%clk 0:03:00]}  O-O {[%clk 0:02:46]} 10. Be2 {[%clk 0:02:54]}  b6 {[%clk 0:02:46]} 11. O-O {[%clk 0:02:53]}  Bb7 {[%clk 0:02:46]} 12. Qd3 {[%clk 0:02:54]}  Nd7 {[%clk 0:02:39]} 13. Be3 {[%clk 0:02:35]}  Rc8 {[%clk 0:02:30]} 14. Rfc1 {[%clk 0:02:32]}  Rxc1+ {[%clk 0:02:30]} 15. Rxc1 {[%clk 0:02:33]}  Qa8 {[%clk 0:02:30]} 16. Nd2 {[%clk 0:02:33]}  Rc8 {[%clk 0:02:29]} 17. Rxc8+ {[%clk 0:02:27]}  Qxc8 {[%clk 0:02:30]} 18. f3 {[%clk 0:02:28]}  Bb4 {[%clk 0:02:20]} 19. Qc4 {[%clk 0:02:23]}  Qxc4 {[%clk 0:02:15]} 20. Nxc4 {[%clk 0:02:13]}  f5 {[%clk 0:01:54]} 21. e5 {[%clk 0:02:05]}  Bd5 {[%clk 0:01:38]} 22. a4 {[%clk 0:01:51]}  Bc3 {[%clk 0:01:34]} 23. Nd6 {[%clk 0:01:37]}  Nb8 {[%clk 0:01:34]} 24. Nc8 {[%clk 0:01:21]}  Nc6 {[%clk 0:01:31]} 25. Bb5 {[%clk 0:01:21]}  Bxd4 {[%clk 0:01:27]} 26. Bxd4 {[%clk 0:01:02]}  Nxd4 {[%clk 0:01:28]} 27. Nxa7 {[%clk 0:01:02]}  Bb7 {[%clk 0:01:27]} 28. Bd7 {[%clk 0:00:54]}  Kf7 {[%clk 0:01:23]} 29. Nb5 {[%clk 0:00:54]}  Nxb5 {[%clk 0:01:20]} 30. Bxb5 {[%clk 0:00:54]}  f4 {[%clk 0:01:17]} 31. Kf2 {[%clk 0:00:54]}  g5 {[%clk 0:01:16]} 32. g3 {[%clk 0:00:48]}  Bd5 {[%clk 0:01:12]} 33. g4 {[%clk 0:00:44]}  Ke7 {[%clk 0:01:08]} 34. Kg2 {[%clk 0:00:42]}  Kd8 {[%clk 0:01:07]} 35. Kf2 {[%clk 0:00:40]}  Ke7 {[%clk 0:01:06]} 36. Kg2 {[%clk 0:00:40]}  h5 {[%clk 0:01:04]} 37. h3 {[%clk 0:00:40]}  hxg4 {[%clk 0:00:55]} 38. hxg4 {[%clk 0:00:41]}  Kd8 {[%clk 0:00:56]} 39. Kf2 {[%clk 0:00:41]}  Kc7 {[%clk 0:00:56]} 40. Kg2 {[%clk 0:00:41]} 1/2-1/2


[Site "https://www.chess.com"]

[Event "Titled Tuesday Blitz June 29 2021"]
[White "Khamrakulov_Djurabek"]
[Black "dmitrijiIM"]
[WhiteElo "2817"]
[BlackElo "2614"]
[Result "1-0"]
[Round "05"]
[TimeControl "180+1"]
[Date "2021.06.29"]
[WhiteClock "0:00:21"]
[BlackClock "0:00:04"]

1. e4 {[%clk 0:02:54]}  c5 {[%clk 0:02:56]} 2. Nc3 {[%clk 0:02:52]}  Nc6 {[%clk 0:02:56]} 3. Bb5 {[%clk 0:02:52]}  Nd4 {[%clk 0:02:54]} 4. Nf3 {[%clk 0:02:52]}  g6 {[%clk 0:02:55]} 5. Nxd4 {[%clk 0:02:49]}  cxd4 {[%clk 0:02:56]} 6. Ne2 {[%clk 0:02:48]}  Bg7 {[%clk 0:02:56]} 7. O-O {[%clk 0:02:46]}  a6 {[%clk 0:02:56]} 8. Bd3 {[%clk 0:02:45]}  d5 {[%clk 0:02:56]} 9. c3 {[%clk 0:02:41]}  dxe4 {[%clk 0:02:44]} 10. Bxe4 {[%clk 0:02:41]}  d3 {[%clk 0:01:53]} 11. Nf4 {[%clk 0:02:34]}  e5 {[%clk 0:01:52]} 12. Re1 {[%clk 0:02:19]}  Ne7 {[%clk 0:01:47]} 13. Nxd3 {[%clk 0:01:25]}  f5 {[%clk 0:01:47]} 14. Nxe5 {[%clk 0:01:23]}  Bxe5 {[%clk 0:00:58]} 15. Bxb7 {[%clk 0:01:20]}  Bxh2+ {[%clk 0:00:39]} 16. Kxh2 {[%clk 0:01:21]}  Qc7+ {[%clk 0:00:39]} 17. Kg1 {[%clk 0:01:17]}  Bxb7 {[%clk 0:00:39]} 18. Qb3 {[%clk 0:01:13]}  O-O-O {[%clk 0:00:32]} 19. d4 {[%clk 0:01:13]}  Rhe8 {[%clk 0:00:21]} 20. Bg5 {[%clk 0:01:12]}  h6 {[%clk 0:00:18]} 21. Bxh6 {[%clk 0:01:07]}  Rh8 {[%clk 0:00:16]} 22. Qe6+ {[%clk 0:00:54]}  Rd7 {[%clk 0:00:13]} 23. Qf6 {[%clk 0:00:52]}  Rh7 {[%clk 0:00:07]} 24. Re5 {[%clk 0:00:48]}  Nc6 {[%clk 0:00:05]} 25. Re8+ {[%clk 0:00:37]}  Nd8 {[%clk 0:00:06]} 26. Qxg6 {[%clk 0:00:32]}  Rd6 {[%clk 0:00:06]} 27. Qxf5+ {[%clk 0:00:31]}  Kb8 {[%clk 0:00:06]} 28. Bf4 {[%clk 0:00:31]}  Ka8 {[%clk 0:00:01]} 29. Bxd6 {[%clk 0:00:29]}  Qxd6 {[%clk 0:00:02]} 30. Qxh7 {[%clk 0:00:29]}  Qd5 {[%clk 0:00:02]} 31. f3 {[%clk 0:00:26]}  Ka7 {[%clk 0:00:03]} 32. Qe7 {[%clk 0:00:21]}  Nc6 {[%clk 0:00:03]} 33. Qc5+ {[%clk 0:00:21]}  Qxc5 {[%clk 0:00:04]} 34. dxc5 {[%clk 0:00:21]} 1-0


[Site "https://www.chess.com"]

[Event "Titled Tuesday Blitz June 29 2021"]
[White "TigrVShlyape"]
[Black "Iskusnyh"]
[WhiteElo "2847"]
[BlackElo "2632"]
[Result "1/2-1/2"]
[Round "05"]
[TimeControl "180+1"]
[Date "2021.06.29"]
[WhiteClock "0:00:18"]
[BlackClock "0:00:20"]

1. d4 {[%clk 0:03:00]}  d5 {[%clk 0:02:59]} 2. Nf3 {[%clk 0:03:00]}  Nf6 {[%clk 0:02:58]} 3. Bf4 {[%clk 0:03:00]}  c5 {[%clk 0:02:57]} 4. e3 {[%clk 0:02:59]}  Nc6 {[%clk 0:02:56]} 5. Nbd2 {[%clk 0:02:58]}  cxd4 {[%clk 0:02:55]} 6. exd4 {[%clk 0:02:56]}  Bg4 {[%clk 0:02:53]} 7. c3 {[%clk 0:02:56]}  Qb6 {[%clk 0:02:47]} 8. Qb3 {[%clk 0:02:52]}  Qxb3 {[%clk 0:02:33]} 9. axb3 {[%clk 0:02:51]}  Rc8 {[%clk 0:02:30]} 10. Ne5 {[%clk 0:02:43]}  a6 {[%clk 0:02:22]} 11. Nxg4 {[%clk 0:02:18]}  Nxg4 {[%clk 0:02:21]} 12. Be2 {[%clk 0:02:17]}  Nf6 {[%clk 0:02:20]} 13. b4 {[%clk 0:02:17]}  e6 {[%clk 0:02:13]} 14. O-O {[%clk 0:02:15]}  Be7 {[%clk 0:02:08]} 15. Rfe1 {[%clk 0:02:12]}  O-O {[%clk 0:02:06]} 16. Nb3 {[%clk 0:02:09]}  Nd7 {[%clk 0:02:05]} 17. Bd3 {[%clk 0:02:07]}  g6 {[%clk 0:01:57]} 18. g3 {[%clk 0:02:05]}  Rfe8 {[%clk 0:01:54]} 19. Kg2 {[%clk 0:02:04]}  Bf8 {[%clk 0:01:54]} 20. h4 {[%clk 0:02:00]}  e5 {[%clk 0:01:46]} 21. dxe5 {[%clk 0:01:59]}  Ndxe5 {[%clk 0:01:44]} 22. Bf1 {[%clk 0:01:53]}  Nc4 {[%clk 0:01:43]} 23. Rxe8 {[%clk 0:01:44]}  Rxe8 {[%clk 0:01:43]} 24. Bxc4 {[%clk 0:01:45]}  dxc4 {[%clk 0:01:42]} 25. Nd2 {[%clk 0:01:46]}  Rc8 {[%clk 0:01:16]} 26. Kf3 {[%clk 0:01:31]}  Ne7 {[%clk 0:01:08]} 27. Ra5 {[%clk 0:01:25]}  Nf5 {[%clk 0:00:57]} 28. h5 {[%clk 0:01:07]}  f6 {[%clk 0:00:55]} 29. g4 {[%clk 0:00:58]}  Ne7 {[%clk 0:00:49]} 30. Ne4 {[%clk 0:00:55]}  Nc6 {[%clk 0:00:33]} 31. Rd5 {[%clk 0:00:51]}  Be7 {[%clk 0:00:31]} 32. b5 {[%clk 0:00:50]}  axb5 {[%clk 0:00:27]} 33. Rxb5 {[%clk 0:00:49]}  Nd8 {[%clk 0:00:28]} 34. Rb6 {[%clk 0:00:27]}  Rc6 {[%clk 0:00:26]} 35. Rb5 {[%clk 0:00:23]}  Kf7 {[%clk 0:00:26]} 36. hxg6+ {[%clk 0:00:20]}  hxg6 {[%clk 0:00:26]} 37. Nd2 {[%clk 0:00:20]}  g5 {[%clk 0:00:25]} 38. Be3 {[%clk 0:00:20]}  Ke6 {[%clk 0:00:21]} 39. Ke4 {[%clk 0:00:20]}  Nf7 {[%clk 0:00:19]} 40. Kf3 {[%clk 0:00:19]}  Nd6 {[%clk 0:00:19]} 41. Rb6 {[%clk 0:00:19]}  Rxb6 {[%clk 0:00:19]} 42. Bxb6 {[%clk 0:00:19]}  Nc8 {[%clk 0:00:19]} 43. Bd4 {[%clk 0:00:19]}  b5 {[%clk 0:00:19]} 44. b3 {[%clk 0:00:18]}  Nd6 {[%clk 0:00:18]} 45. bxc4 {[%clk 0:00:18]}  Nxc4 {[%clk 0:00:19]} 46. Nxc4 {[%clk 0:00:18]}  bxc4 {[%clk 0:00:19]} 47. Ke4 {[%clk 0:00:18]}  Bd6 {[%clk 0:00:19]} 48. f3 {[%clk 0:00:17]}  Bc7 {[%clk 0:00:19]} 49. Be3 {[%clk 0:00:17]}  Be5 {[%clk 0:00:19]} 50. Bd4 {[%clk 0:00:17]}  Bf4 {[%clk 0:00:19]} 51. Bc5 {[%clk 0:00:17]}  Be5 {[%clk 0:00:19]} 52. Bd4 {[%clk 0:00:18]}  Bf4 {[%clk 0:00:20]} 53. Bc5 {[%clk 0:00:18]}  Be5 {[%clk 0:00:20]} 54. Bd4 {[%clk 0:00:18]} 1/2-1/2


[Site "https://www.chess.com"]